[Event "*** Titled Tuesday Blitz"]
[Site "Chess.com"]
[Date "2020.12.29"]
[Round "7"]
[White "Kopytkin"]
[Black "annacramling"]
[Result "1-0"]
[WhiteElo "2379"]
[BlackElo "2084"]
[TimeControl "180+1"]
[EndTime "11:16:30 PST"]
[Termination "Kopytkin won on time"]

1. e4 {[%clk 0:03:00.9]} 1... c5 {[%clk 0:02:57]} 2. d4 {[%clk 0:02:59.3]} 2...
cxd4 {[%clk 0:02:51.3]} 3. c3 {[%clk 0:02:59.7]} 3... Nf6 {[%clk 0:02:45.7]} 4.
e5 {[%clk 0:02:59.6]} 4... Nd5 {[%clk 0:02:46]} 5. g3 {[%clk 0:03:00.1]} 5... e6
{[%clk 0:02:37.5]} 6. cxd4 {[%clk 0:02:58.7]} 6... Nc6 {[%clk 0:02:33.7]} 7. Bg2
{[%clk 0:02:58.7]} 7... d6 {[%clk 0:02:33.7]} 8. Nf3 {[%clk 0:02:54.8]} 8... Qc7
{[%clk 0:02:16.8]} 9. O-O {[%clk 0:02:53.5]} 9... dxe5 {[%clk 0:02:12.3]} 10.
dxe5 {[%clk 0:02:53.4]} 10... Bc5 {[%clk 0:02:10.1]} 11. Na3 {[%clk 0:02:39.7]}
11... O-O {[%clk 0:02:04.2]} 12. Nb5 {[%clk 0:02:25]} 12... Qb6 {[%clk
0:01:54.2]} 13. a4 {[%clk 0:02:20.2]} 13... Rd8 {[%clk 0:01:42.4]} 14. Ng5
{[%clk 0:02:05.6]} 14... h6 {[%clk 0:00:54.8]} 15. Ne4 {[%clk 0:01:59.8]} 15...
Ne3 {[%clk 0:00:45.9]} 16. Qh5 {[%clk 0:01:39.3]} 16... Nxf1 {[%clk 0:00:34.9]}
17. Bxh6 {[%clk 0:01:33.3]} 17... Bf8 {[%clk 0:00:11.6]} 18. Rxf1 {[%clk
0:01:10.1]} 18... Ne7 {[%clk 0:00:07.2]} 19. Nbd6 {[%clk 0:01:05.3]} 19... Ng6
{[%clk 0:00:06.8]} 20. Bg5 {[%clk 0:01:01.5]} 20... Rxd6 {[%clk 0:00:03.7]} 21.
exd6 {[%clk 0:00:58.8]} 21... Bxd6 {[%clk 0:00:03.7]} 22. Rd1 {[%clk 0:00:54.2]}
22... Qc7 {[%clk 0:00:03]} 23. Rxd6 {[%clk 0:00:48.9]} 23... Bd7 {[%clk
0:00:03.1]} 24. Rd1 {[%clk 0:00:39.4]} 24... Bc6 {[%clk 0:00:03.4]} 25. Be3
{[%clk 0:00:31]} 25... Rd8 {[%clk 0:00:03]} 26. Ng5 {[%clk 0:00:26.7]} 26...
Rxd1+ {[%clk 0:00:02.7]} 27. Qxd1 {[%clk 0:00:26.8]} 27... Bxg2 {[%clk
0:00:03.1]} 28. Qh5 {[%clk 0:00:22.3]} 1-0

[Event "*** Titled Tuesday Blitz"]
[Site "Chess.com"]
[Date "2020.12.29"]
[Round "7"]
[White "SamuelGhimpu2003"]
[Black "Supernotar"]
[Result "0-1"]
[WhiteElo "2607"]
[BlackElo "2854"]
[TimeControl "180+1"]
[EndTime "11:16:31 PST"]
[Termination "Supernotar won on time"]

1. d4 {[%clk 0:03:00.9]} 1... d5 {[%clk 0:02:55.9]} 2. Nc3 {[%clk 0:02:59.8]}
2... Nf6 {[%clk 0:02:55.5]} 3. Bf4 {[%clk 0:02:59.2]} 3... a6 {[%clk 0:02:55.5]}
4. e3 {[%clk 0:02:51.7]} 4... e6 {[%clk 0:02:54.5]} 5. Nf3 {[%clk 0:02:49.8]}
5... c5 {[%clk 0:02:49.4]} 6. dxc5 {[%clk 0:02:49.9]} 6... Bxc5 {[%clk
0:02:48.7]} 7. Bd3 {[%clk 0:02:50.1]} 7... Nc6 {[%clk 0:02:47.5]} 8. O-O {[%clk
0:02:49.3]} 8... O-O {[%clk 0:02:47]} 9. e4 {[%clk 0:02:46.6]} 9... Nb4 {[%clk
0:02:44.1]} 10. e5 {[%clk 0:02:25.7]} 10... Nxd3 {[%clk 0:02:40.8]} 11. Qxd3
{[%clk 0:02:26.6]} 11... Nd7 {[%clk 0:02:30.8]} 12. Ng5 {[%clk 0:02:07.4]} 12...
g6 {[%clk 0:02:30.5]} 13. Qh3 {[%clk 0:02:08]} 13... h5 {[%clk 0:02:30.3]} 14.
g4 {[%clk 0:02:08.7]} 14... Be7 {[%clk 0:02:27.1]} 15. Nf3 {[%clk 0:01:33.7]}
15... hxg4 {[%clk 0:02:23.4]} 16. Qxg4 {[%clk 0:01:34.6]} 16... Kg7 {[%clk
0:02:22.3]} 17. Kh1 {[%clk 0:01:23.4]} 17... Rh8 {[%clk 0:02:20.7]} 18. Rg1
{[%clk 0:01:23.3]} 18... b5 {[%clk 0:02:14.6]} 19. Nd4 {[%clk 0:01:18.6]} 19...
Qb6 {[%clk 0:01:55.4]} 20. Rad1 {[%clk 0:01:05]} 20... Bb7 {[%clk 0:01:49]} 21.
Be3 {[%clk 0:00:38.7]} 21... Rh4 {[%clk 0:01:38.6]} 22. Qg3 {[%clk 0:00:26.8]}
22... Kg8 {[%clk 0:00:47.9]} 23. f3 {[%clk 0:00:16.4]} 23... Rh7 {[%clk
0:00:45.3]} 24. Nf5 {[%clk 0:00:12.4]} 24... Qd8 {[%clk 0:00:43.5]} 25. Nh6+
{[%clk 0:00:11.2]} 25... Kh8 {[%clk 0:00:36.4]} 26. Nxf7+ {[%clk 0:00:06.4]}
26... Rxf7 {[%clk 0:00:35.6]} 27. Qxg6 {[%clk 0:00:07.3]} 27... Rh7 {[%clk
0:00:33.6]} 28. Rd4 {[%clk 0:00:02.8]} 28... Qf8 {[%clk 0:00:29.4]} 29. Rg3
{[%clk 0:00:01.4]} 29... Nxe5 {[%clk 0:00:27.5]} 0-1

[Event "*** Titled Tuesday Blitz"]
[Site "Chess.com"]
[Date "2020.12.29"]
[Round "7"]
[White "OrtizAnahi2001"]
[Black "PenguinPacks"]
[Result "1-0"]
[WhiteElo "2324"]
[BlackElo "2447"]
[TimeControl "180+1"]
[EndTime "11:16:31 PST"]
[Termination "OrtizAnahi2001 won on time"]

1. d4 {[%clk 0:03:00.9]} 1... Nf6 {[%clk 0:02:59.7]} 2. c4 {[%clk 0:02:59.8]}
2... e6 {[%clk 0:02:59.9]} 3. Nc3 {[%clk 0:02:59.2]} 3... Bb4 {[%clk 0:03:00.4]}
4. e3 {[%clk 0:02:58.3]} 4... O-O {[%clk 0:03:00.8]} 5. Bd3 {[%clk 0:02:57.8]}
5... d5 {[%clk 0:03:01.5]} 6. cxd5 {[%clk 0:02:57.2]} 6... exd5 {[%clk
0:03:00.5]} 7. Ne2 {[%clk 0:02:58.1]} 7... Re8 {[%clk 0:02:58.3]} 8. O-O {[%clk
0:02:57.9]} 8... a6 {[%clk 0:02:58.5]} 9. a3 {[%clk 0:02:57.7]} 9... Bd6 {[%clk
0:02:58.4]} 10. Ng3 {[%clk 0:02:55.1]} 10... b6 {[%clk 0:02:44]} 11. b4 {[%clk
0:02:54.4]} 11... Bb7 {[%clk 0:02:44]} 12. Bb2 {[%clk 0:02:54.4]} 12... Nbd7
{[%clk 0:02:44]} 13. Rc1 {[%clk 0:02:51.4]} 13... g6 {[%clk 0:02:39.8]} 14. Nce2
{[%clk 0:02:48.4]} 14... h5 {[%clk 0:02:39]} 15. h3 {[%clk 0:02:45.7]} 15... h4
{[%clk 0:02:28.5]} 16. Nh1 {[%clk 0:02:44.5]} 16... Qe7 {[%clk 0:02:07.3]} 17.
Qc2 {[%clk 0:02:36.8]} 17... Nf8 {[%clk 0:02:06.7]} 18. Nf4 {[%clk 0:02:23]}
18... N8h7 {[%clk 0:02:02.2]} 19. Rfe1 {[%clk 0:02:01.4]} 19... Ng5 {[%clk
0:02:01.3]} 20. Bc3 {[%clk 0:01:58.2]} 20... Qd7 {[%clk 0:01:36.8]} 21. f3
{[%clk 0:01:45]} 21... Rxe3 {[%clk 0:00:32.9]} 22. Bd2 {[%clk 0:01:26]} 22...
Rxe1+ {[%clk 0:00:26.5]} 23. Rxe1 {[%clk 0:01:25.2]} 23... Ngh7 {[%clk
0:00:21.9]} 24. Nf2 {[%clk 0:01:21.9]} 24... Re8 {[%clk 0:00:20.5]} 25. Rxe8+
{[%clk 0:01:20.3]} 25... Qxe8 {[%clk 0:00:21.4]} 26. Ng4 {[%clk 0:01:17.1]}
26... Nxg4 {[%clk 0:00:19.8]} 27. hxg4 {[%clk 0:01:17.1]} 27... Qe7 {[%clk
0:00:14.5]} 28. Bxg6 {[%clk 0:00:58.1]} 28... fxg6 {[%clk 0:00:12]} 29. Qxg6+
{[%clk 0:00:57.6]} 29... Kf8 {[%clk 0:00:07.5]} 30. Ne6+ {[%clk 0:00:56.6]}
30... Qxe6 {[%clk 0:00:06.2]} 31. Qxe6 {[%clk 0:00:56.2]} 31... Bc6 {[%clk
0:00:06.3]} 32. Qf5+ {[%clk 0:00:56.2]} 32... Kg7 {[%clk 0:00:06.5]} 33. Qe6
{[%clk 0:00:54.6]} 33... Nf8 {[%clk 0:00:04.3]} 34. Bh6+ {[%clk 0:00:54.1]}
34... Kh7 {[%clk 0:00:04.4]} 35. Bxf8 {[%clk 0:00:46.4]} 35... Bxf8 {[%clk
0:00:03.7]} 36. Qf7+ {[%clk 0:00:46.7]} 36... Bg7 {[%clk 0:00:03]} 37. Qxc7
{[%clk 0:00:46]} 37... Be8 {[%clk 0:00:02.2]} 38. Qf4 {[%clk 0:00:45.8]} 38...
Bg6 {[%clk 0:00:02]} 39. g5 {[%clk 0:00:44.3]} 39... Kg8 {[%clk 0:00:01.1]} 40.
Qxh4 {[%clk 0:00:44.5]} 1-0

[Event "*** Titled Tuesday Blitz"]
[Site "Chess.com"]
[Date "2020.12.29"]
[Round "7"]
[White "ftorodent"]
[Black "Chessmatus"]
[Result "1-0"]
[WhiteElo "2640"]
[BlackElo "2456"]
[TimeControl "180+1"]
[EndTime "11:16:33 PST"]
[Termination "ftorodent won by resignation"]

1. d4 {[%clk 0:03:00.9]} 1... Nf6 {[%clk 0:03:00.1]} 2. c4 {[%clk 0:03:00.8]}
2... g6 {[%clk 0:03:00.5]} 3. Nc3 {[%clk 0:03:00.1]} 3... d5 {[%clk 0:03:00.8]}
4. Nf3 {[%clk 0:03:00.1]} 4... Bg7 {[%clk 0:03:00.9]} 5. cxd5 {[%clk 0:03:00.8]}
5... Nxd5 {[%clk 0:03:01.8]} 6. Bg5 {[%clk 0:03:00.5]} 6... Nxc3 {[%clk
0:02:58.3]} 7. bxc3 {[%clk 0:03:00.1]} 7... c5 {[%clk 0:02:58.8]} 8. e3 {[%clk
0:03:00.6]} 8... O-O {[%clk 0:02:56.7]} 9. Qd2 {[%clk 0:03:00.2]} 9... Nc6
{[%clk 0:02:55.5]} 10. Be2 {[%clk 0:02:59.4]} 10... Qa5 {[%clk 0:02:52.1]} 11.
Rb1 {[%clk 0:02:59.5]} 11... cxd4 {[%clk 0:02:49.9]} 12. cxd4 {[%clk 0:02:58.9]}
12... Qxd2+ {[%clk 0:02:50.4]} 13. Nxd2 {[%clk 0:02:59.1]} 13... h6 {[%clk
0:02:26.5]} 14. Bh4 {[%clk 0:02:57.5]} 14... a5 {[%clk 0:02:12.5]} 15. a3 {[%clk
0:02:31.7]} 15... g5 {[%clk 0:01:25]} 16. Bg3 {[%clk 0:02:30.9]} 16... a4 {[%clk
0:01:20.4]} 17. Nc4 {[%clk 0:02:20.8]} 17... Be6 {[%clk 0:01:04.4]} 18. Nb6
{[%clk 0:02:17.6]} 18... Ra5 {[%clk 0:01:00.3]} 19. O-O {[%clk 0:02:10.6]} 19...
Bb3 {[%clk 0:00:55.5]} 20. Bc4 {[%clk 0:02:09.2]} 20... Bxc4 {[%clk 0:00:41.4]}
21. Nxc4 {[%clk 0:02:08.7]} 21... Ra7 {[%clk 0:00:42]} 22. Rfc1 {[%clk
0:02:00.3]} 22... e6 {[%clk 0:00:33.9]} 23. Bd6 {[%clk 0:01:55.9]} 23... Rc8
{[%clk 0:00:23.8]} 24. Bc5 {[%clk 0:01:55.8]} 24... Ra6 {[%clk 0:00:20.3]} 25.
Rxb7 {[%clk 0:01:54.4]} 25... e5 {[%clk 0:00:20.4]} 26. Nd6 {[%clk 0:01:41]}
26... Nxd4 {[%clk 0:00:20.1]} 27. Nxc8 {[%clk 0:01:08.4]} 27... Ne2+ {[%clk
0:00:19.7]} 28. Kf1 {[%clk 0:01:08.5]} 28... Nxc1 {[%clk 0:00:20.6]} 29. Ne7+
{[%clk 0:00:46.6]} 29... Kh7 {[%clk 0:00:20.7]} 30. e4 {[%clk 0:00:43.1]} 30...
Nb3 {[%clk 0:00:16.2]} 31. Bb4 {[%clk 0:00:41.1]} 31... Bf8 {[%clk 0:00:16.6]}
32. Nd5 {[%clk 0:00:36]} 32... Bxb4 {[%clk 0:00:15.9]} 33. Nxb4 {[%clk 0:00:36]}
33... Rf6 {[%clk 0:00:15.7]} 34. f3 {[%clk 0:00:32.7]} 34... Kg7 {[%clk
0:00:11.9]} 35. Ke2 {[%clk 0:00:30.5]} 35... Rc6 {[%clk 0:00:12]} 36. Nxc6
{[%clk 0:00:29.5]} 1-0

[Event "*** Titled Tuesday Blitz"]
[Site "Chess.com"]
[Date "2020.12.29"]
[Round "7"]
[White "VladimirBugayev"]
[Black "grandcoach"]
[Result "1-0"]
[WhiteElo "2276"]
[BlackElo "2109"]
[TimeControl "180+1"]
[EndTime "11:16:34 PST"]
[Termination "VladimirBugayev won on time"]

1. e4 {[%clk 0:03:00.9]} 1... c5 {[%clk 0:02:59.3]} 2. a3 {[%clk 0:02:58.3]}
2... g6 {[%clk 0:02:55.7]} 3. h4 {[%clk 0:02:57.2]} 3... Bg7 {[%clk 0:02:40.3]}
4. h5 {[%clk 0:02:55.3]} 4... Nc6 {[%clk 0:02:39.7]} 5. Nc3 {[%clk 0:02:49.9]}
5... gxh5 {[%clk 0:02:25.5]} 6. Be2 {[%clk 0:02:38.9]} 6... Nf6 {[%clk
0:02:25.2]} 7. Bxh5 {[%clk 0:02:38.5]} 7... d6 {[%clk 0:02:15.4]} 8. d3 {[%clk
0:02:38]} 8... Be6 {[%clk 0:02:05.4]} 9. Bf3 {[%clk 0:02:21.6]} 9... Nd4 {[%clk
0:02:02.2]} 10. Bh6 {[%clk 0:02:21.1]} 10... Bxh6 {[%clk 0:01:58]} 11. Rxh6
{[%clk 0:02:19.8]} 11... Qd7 {[%clk 0:01:50]} 12. Qd2 {[%clk 0:02:09.4]} 12...
Rg8 {[%clk 0:01:39.5]} 13. O-O-O {[%clk 0:01:58.9]} 13... O-O-O {[%clk
0:01:07.2]} 14. Qf4 {[%clk 0:01:32.3]} 14... Rg6 {[%clk 0:01:02.1]} 15. Rxg6
{[%clk 0:01:20]} 15... hxg6 {[%clk 0:01:01.1]} 16. e5 {[%clk 0:01:19.6]} 16...
Nh5 {[%clk 0:00:47.5]} 17. Bxh5 {[%clk 0:01:18.8]} 17... gxh5 {[%clk 0:00:46.8]}
18. Ne4 {[%clk 0:01:17]} 18... Qa4 {[%clk 0:00:42.7]} 19. Qd2 {[%clk 0:01:01.8]}
19... Bb3 {[%clk 0:00:40]} 20. Nc3 {[%clk 0:00:54.7]} 20... Qc6 {[%clk
0:00:35.6]} 21. exd6 {[%clk 0:00:51.5]} 21... Rxd6 {[%clk 0:00:20.9]} 22. Qg5
{[%clk 0:00:49.4]} 22... Bxc2 {[%clk 0:00:19.3]} 23. Qxe7 {[%clk 0:00:48.5]}
23... Re6 {[%clk 0:00:15.8]} 24. Qf8+ {[%clk 0:00:46.9]} 24... Re8 {[%clk
0:00:11.4]} 25. Qxf7 {[%clk 0:00:45.5]} 25... Bb3 {[%clk 0:00:09.2]} 26. Nf3
{[%clk 0:00:44.3]} 26... Ne2+ {[%clk 0:00:06.1]} 27. Nxe2 {[%clk 0:00:43.3]}
27... Rxe2 {[%clk 0:00:05.8]} 28. Rd2 {[%clk 0:00:42.7]} 28... Qxf3 {[%clk
0:00:03.3]} 29. Qxb3 {[%clk 0:00:39.7]} 29... Re1+ {[%clk 0:00:02.7]} 30. Rd1
{[%clk 0:00:39.3]} 30... Rxd1+ {[%clk 0:00:01.9]} 31. Qxd1 {[%clk 0:00:39.4]}
31... Qxg2 {[%clk 0:00:02.3]} 32. Qxh5 {[%clk 0:00:39.3]} 32... Qxf2 {[%clk
0:00:01.4]} 33. Qd5 {[%clk 0:00:39.1]} 33... Qd4 {[%clk 0:00:01.3]} 34. Qe6+
{[%clk 0:00:38.1]} 34... Kc7 {[%clk 0:00:01.3]} 35. Qe7+ {[%clk 0:00:37.9]}
35... Kc6 {[%clk 0:00:01.2]} 36. Qe2 {[%clk 0:00:38.5]} 36... Kc7 {[%clk
0:00:01]} 37. Qc2 {[%clk 0:00:37.2]} 37... a6 {[%clk 0:00:01.9]} 38. b4 {[%clk
0:00:36.3]} 1-0

[Event "*** Titled Tuesday Blitz"]
[Site "Chess.com"]
[Date "2020.12.29"]
[Round "7"]
[White "ZatonskihAnna"]
[Black "esapunov"]
[Result "0-1"]
[WhiteElo "2478"]
[BlackElo "2699"]
[TimeControl "180+1"]
[EndTime "11:16:35 PST"]
[Termination "esapunov won on time"]

1. e4 {[%clk 0:03:00.9]} 1... c5 {[%clk 0:02:59.7]} 2. g3 {[%clk 0:03:00.1]}
2... Nc6 {[%clk 0:02:58.5]} 3. Bg2 {[%clk 0:02:59.8]} 3... g6 {[%clk 0:02:59]}
4. d3 {[%clk 0:03:00.2]} 4... Bg7 {[%clk 0:02:59.1]} 5. f4 {[%clk 0:03:00.5]}
5... d6 {[%clk 0:02:59.2]} 6. Nf3 {[%clk 0:03:00.8]} 6... b5 {[%clk 0:02:58]} 7.
O-O {[%clk 0:03:00.6]} 7... Rb8 {[%clk 0:02:58.3]} 8. c3 {[%clk 0:02:58.8]} 8...
b4 {[%clk 0:02:58.5]} 9. Be3 {[%clk 0:02:58.5]} 9... a5 {[%clk 0:02:58.3]} 10.
d4 {[%clk 0:02:57.9]} 10... Nf6 {[%clk 0:02:50]} 11. e5 {[%clk 0:02:44.9]} 11...
Ng4 {[%clk 0:02:46.6]} 12. Bc1 {[%clk 0:02:39]} 12... bxc3 {[%clk 0:02:44.5]}
13. bxc3 {[%clk 0:02:37.1]} 13... cxd4 {[%clk 0:02:44.2]} 14. cxd4 {[%clk
0:02:36.9]} 14... Qb6 {[%clk 0:02:42.7]} 15. h3 {[%clk 0:02:29.6]} 15... Nh6
{[%clk 0:02:42.2]} 16. g4 {[%clk 0:02:24.2]} 16... O-O {[%clk 0:02:40.8]} 17.
Kh1 {[%clk 0:02:19.8]} 17... f5 {[%clk 0:02:34.4]} 18. g5 {[%clk 0:02:13.4]}
18... Nf7 {[%clk 0:02:33.7]} 19. Nc3 {[%clk 0:02:01.5]} 19... e6 {[%clk
0:02:33]} 20. Rb1 {[%clk 0:01:47]} 20... Qa6 {[%clk 0:02:27.5]} 21. Rxb8 {[%clk
0:01:43.7]} 21... Nxb8 {[%clk 0:02:27.4]} 22. Ba3 {[%clk 0:01:39.6]} 22... Rd8
{[%clk 0:02:26.9]} 23. Qb3 {[%clk 0:01:29.9]} 23... Bb7 {[%clk 0:01:46]} 24. Rb1
{[%clk 0:01:10.8]} 24... Bc6 {[%clk 0:01:45.8]} 25. Nb5 {[%clk 0:01:01]} 25...
a4 {[%clk 0:01:38.4]} 26. Qb2 {[%clk 0:00:32.5]} 26... dxe5 {[%clk 0:01:16.5]}
27. Nc7 {[%clk 0:00:14.5]} 27... Qd3 {[%clk 0:01:08.1]} 28. Nxe6 {[%clk
0:00:12.2]} 28... Rc8 {[%clk 0:00:58.7]} 29. Ne1 {[%clk 0:00:08.6]} 29... Bxg2+
{[%clk 0:00:57.4]} 30. Nxg2 {[%clk 0:00:08.7]} 30... exd4 {[%clk 0:00:46.6]} 31.
Qxb8 {[%clk 0:00:06.8]} 31... Rxb8 {[%clk 0:00:43.1]} 32. Rxb8+ {[%clk
0:00:07.7]} 32... Nd8 {[%clk 0:00:43.5]} 33. Rxd8+ {[%clk 0:00:02.4]} 33... Kf7
{[%clk 0:00:42.9]} 34. Rd7+ {[%clk 0:00:02.5]} 34... Kxe6 {[%clk 0:00:42.6]} 35.
Rd6+ {[%clk 0:00:02.9]} 35... Ke7 {[%clk 0:00:39.7]} 36. Bb4 {[%clk 0:00:02.9]}
36... Qb1+ {[%clk 0:00:38.9]} 0-1

[Event "*** Titled Tuesday Blitz"]
[Site "Chess.com"]
[Date "2020.12.29"]
[Round "7"]
[White "bocah_sakit"]
[Black "Bigfish1995"]
[Result "0-1"]
[WhiteElo "2831"]
[BlackElo "3015"]
[TimeControl "180+1"]
[EndTime "11:16:37 PST"]
[Termination "Bigfish1995 won by resignation"]

1. e4 {[%clk 0:03:00.9]} 1... c5 {[%clk 0:02:57.8]} 2. Nf3 {[%clk 0:03:00.9]}
2... d6 {[%clk 0:02:58.1]} 3. d4 {[%clk 0:03:01.5]} 3... cxd4 {[%clk 0:02:58.5]}
4. Nxd4 {[%clk 0:03:02.4]} 4... Nf6 {[%clk 0:02:58.9]} 5. Nc3 {[%clk 0:03:03.1]}
5... a6 {[%clk 0:02:59.4]} 6. Bg5 {[%clk 0:03:03.2]} 6... Nbd7 {[%clk
0:02:57.1]} 7. f4 {[%clk 0:03:03.2]} 7... b5 {[%clk 0:02:50.7]} 8. Qe2 {[%clk
0:02:55.5]} 8... e5 {[%clk 0:02:43.7]} 9. Nf5 {[%clk 0:02:38]} 9... h6 {[%clk
0:02:33]} 10. Bxf6 {[%clk 0:02:00.2]} 10... Nxf6 {[%clk 0:02:32.9]} 11. O-O-O
{[%clk 0:02:00.7]} 11... Qc7 {[%clk 0:02:29.9]} 12. Ne3 {[%clk 0:01:29.2]} 12...
Bb7 {[%clk 0:02:21.3]} 13. fxe5 {[%clk 0:01:22.9]} 13... dxe5 {[%clk 0:02:19.6]}
14. Ned5 {[%clk 0:01:23.5]} 14... Bxd5 {[%clk 0:02:16.1]} 15. Nxd5 {[%clk
0:01:24.4]} 15... Nxd5 {[%clk 0:02:16.5]} 16. Rxd5 {[%clk 0:01:24.4]} 16... Be7
{[%clk 0:02:13.7]} 17. Qg4 {[%clk 0:01:16.7]} 17... O-O {[%clk 0:02:09.9]} 18.
Bd3 {[%clk 0:01:16.5]} 18... Rad8 {[%clk 0:02:07.1]} 19. h4 {[%clk 0:01:06.4]}
19... f5 {[%clk 0:02:00.8]} 20. Qg6 {[%clk 0:01:00.2]} 20... Rxd5 {[%clk
0:01:55.1]} 21. Qe6+ {[%clk 0:00:59.8]} 21... Kh8 {[%clk 0:01:54.8]} 22. Qxd5
{[%clk 0:01:00.7]} 22... Rd8 {[%clk 0:01:52.3]} 23. Qb3 {[%clk 0:00:54.8]} 23...
f4 {[%clk 0:01:51.8]} 24. Kb1 {[%clk 0:00:53.2]} 24... Qc6 {[%clk 0:01:39]} 25.
Qf7 {[%clk 0:00:50.7]} 25... Bf6 {[%clk 0:01:34.9]} 26. h5 {[%clk 0:00:42.5]}
26... Qd6 {[%clk 0:01:12.4]} 27. a3 {[%clk 0:00:41.5]} 27... Rf8 {[%clk
0:01:10.8]} 28. Qg6 {[%clk 0:00:38.9]} 28... b4 {[%clk 0:01:02.9]} 29. axb4
{[%clk 0:00:24.2]} 29... Qxb4 {[%clk 0:01:03]} 30. g3 {[%clk 0:00:19.4]} 30...
f3 {[%clk 0:00:56.5]} 31. Rf1 {[%clk 0:00:18.8]} 31... f2 {[%clk 0:00:57]} 32.
Qf5 {[%clk 0:00:13.4]} 32... Be7 {[%clk 0:00:57]} 33. Qe6 {[%clk 0:00:08.3]}
33... Rb8 {[%clk 0:00:50.1]} 34. b3 {[%clk 0:00:08.4]} 34... Bc5 {[%clk
0:00:49.7]} 35. Qc4 {[%clk 0:00:04.2]} 35... Qe1+ {[%clk 0:00:49.2]} 36. Ka2
{[%clk 0:00:04.2]} 36... Bd4 {[%clk 0:00:46.8]} 37. c3 {[%clk 0:00:02.9]} 37...
Qd2+ {[%clk 0:00:45.2]} 38. Ka3 {[%clk 0:00:01.9]} 38... Bxc3 {[%clk 0:00:45]}
39. Qc7 {[%clk 0:00:01.4]} 39... Qb2+ {[%clk 0:00:44.2]} 0-1

[Event "*** Titled Tuesday Blitz"]
[Site "Chess.com"]
[Date "2020.12.29"]
[Round "7"]
[White "mirochka"]
[Black "zverr1"]
[Result "0-1"]
[WhiteElo "2185"]
[BlackElo "2433"]
[TimeControl "180+1"]
[EndTime "11:16:37 PST"]
[Termination "zverr1 won on time"]

1. e4 {[%clk 0:03:00.9]} 1... e6 {[%clk 0:02:59.3]} 2. Nf3 {[%clk 0:02:58.8]}
2... d5 {[%clk 0:02:59.7]} 3. e5 {[%clk 0:02:59.1]} 3... c5 {[%clk 0:02:59.7]}
4. b4 {[%clk 0:02:58.4]} 4... d4 {[%clk 0:03:00.2]} 5. Bb2 {[%clk 0:02:46.3]}
5... Nc6 {[%clk 0:02:55.4]} 6. Bb5 {[%clk 0:02:37.2]} 6... Qb6 {[%clk
0:02:52.4]} 7. a4 {[%clk 0:02:22.8]} 7... a6 {[%clk 0:02:48]} 8. Bxc6+ {[%clk
0:02:02.1]} 8... bxc6 {[%clk 0:02:47.6]} 9. c3 {[%clk 0:02:01.9]} 9... d3 {[%clk
0:02:36.7]} 10. a5 {[%clk 0:01:43.2]} 10... Qb8 {[%clk 0:02:34.3]} 11. Na3
{[%clk 0:01:22.1]} 11... Ne7 {[%clk 0:02:20.9]} 12. Nc4 {[%clk 0:01:20.9]} 12...
Nd5 {[%clk 0:02:18.2]} 13. Qa4 {[%clk 0:01:07.3]} 13... Qb5 {[%clk 0:02:16.6]}
14. O-O {[%clk 0:00:51.9]} 14... Bd7 {[%clk 0:02:08.4]} 15. Qxb5 {[%clk
0:00:48]} 15... cxb5 {[%clk 0:02:07.4]} 16. Nb6 {[%clk 0:00:47.8]} 16... Nxb6
{[%clk 0:01:58]} 17. axb6 {[%clk 0:00:48.7]} 17... c4 {[%clk 0:01:58.2]} 18. b7
{[%clk 0:00:36.5]} 18... Rb8 {[%clk 0:01:58.3]} 19. Rxa6 {[%clk 0:00:36.9]}
19... Be7 {[%clk 0:01:58.5]} 20. Nd4 {[%clk 0:00:34.5]} 20... Rxb7 {[%clk
0:01:54.5]} 21. Ra8+ {[%clk 0:00:30.1]} 21... Bd8 {[%clk 0:01:55]} 22. Rfa1
{[%clk 0:00:28.8]} 22... O-O {[%clk 0:01:55.1]} 23. R1a6 {[%clk 0:00:25.1]}
23... Bb6 {[%clk 0:01:51.6]} 24. Rxf8+ {[%clk 0:00:23.9]} 24... Kxf8 {[%clk
0:01:52.5]} 25. Kf1 {[%clk 0:00:20.1]} 25... f6 {[%clk 0:01:47.6]} 26. f4 {[%clk
0:00:20]} 26... Ke7 {[%clk 0:01:44.2]} 27. Kf2 {[%clk 0:00:19]} 27... Bc7 {[%clk
0:01:44.5]} 28. Ke3 {[%clk 0:00:18.6]} 28... fxe5 {[%clk 0:01:43.1]} 29. fxe5
{[%clk 0:00:18.1]} 29... Bxe5 {[%clk 0:01:44]} 30. Ra5 {[%clk 0:00:18.1]} 30...
Bxh2 {[%clk 0:01:42.2]} 31. Ra8 {[%clk 0:00:16.7]} 31... Bg1+ {[%clk 0:01:41.7]}
32. Ke4 {[%clk 0:00:16.2]} 32... Be8 {[%clk 0:01:37.6]} 33. Ra5 {[%clk
0:00:14.7]} 33... Bg6+ {[%clk 0:01:36.8]} 34. Kf3 {[%clk 0:00:15]} 34... Be8
{[%clk 0:01:31.6]} 35. Ke4 {[%clk 0:00:14.4]} 35... h5 {[%clk 0:01:30.7]} 36.
Ra6 {[%clk 0:00:14.3]} 36... Bd7 {[%clk 0:01:29.7]} 37. Kf3 {[%clk 0:00:14.2]}
37... g5 {[%clk 0:01:29.3]} 38. Ke4 {[%clk 0:00:14.2]} 38... g4 {[%clk
0:01:28.6]} 39. Kf4 {[%clk 0:00:14.2]} 39... Rb8 {[%clk 0:01:28.6]} 40. Kg5
{[%clk 0:00:14.1]} 40... Rg8+ {[%clk 0:01:26.2]} 41. Kxh5 {[%clk 0:00:13.9]}
41... Be8+ {[%clk 0:01:25.7]} 42. Kh4 {[%clk 0:00:13.7]} 42... Bf2+ {[%clk
0:01:22.8]} 43. g3 {[%clk 0:00:13.8]} 43... Bd7 {[%clk 0:01:18.6]} 44. Ra7
{[%clk 0:00:13.5]} 44... Be1 {[%clk 0:01:15.9]} 45. Kh5 {[%clk 0:00:13.1]} 45...
Bxd2 {[%clk 0:01:14.8]} 46. Nxb5 {[%clk 0:00:12.1]} 46... Rg5+ {[%clk 0:01:13]}
47. Kh4 {[%clk 0:00:10.5]} 47... Rxb5 {[%clk 0:01:13.9]} 0-1